bitfinex/quotes_ETHUSD_20251110
["timestamp","ask_amount","ask_price","bid_price","bid_amount"]
[1762756338572,0.25976053,3600.4,3600.3,0.001]
[1762756338973,0.25976053,3600.4,3600.3,0.4668]
[1762756339471,0.25976053,3600.4,3600.3,0.9386]
[1762756340035,0.25976053,3600.4,3600.3,0.4668]
[1762756340367,0.33986053,3600.4,3600.3,0.001]
[1762756340874,3.1173297,3600.4,3600.3,0.001]
[1762756341069,0.33986053,3600.4,3600.3,0.001]
[1762756342080,0.25976053,3600.4,3600.3,0.9386]
[1762756342250,0.25976053,3600.4,3600.3,1.32964918]
[1762756343184,0.25912137,3600.4,3600.3,1.32964918]
[1762756343566,0.25912137,3600.4,3600.3,0.85784918]
[1762756343772,0.25912137,3600.4,3600.3,1.32964918]
[1762756345883,0.25912137,3600.4,3600.3,4.10719549]
[1762756346087,2.77682596,3601.3,3600.6,2.77728484]
[1762756346258,0.25920521,3601.2,3600.6,6.94238196]
[1762756346461,0.25920521,3601.1,3600.7,2.77723185]
[1762756346672,0.25920521,3601.0,3600.9,4.16509712]
[1762756347058,0.25920521,3601.0,3600.9,7.89648062]
[1762756347281,0.002,3601.8,3601.0,2.77696136]
[1762756347486,0.25920952,3601.7,3601.1,3.44242874]
[1762756347787,0.25920952,3601.6,3601.1,3.44242074]
[1762756347988,0.25920952,3601.5,3601.2,0.474]
[1762756348194,0.25920952,3601.4,3601.3,2.77672835]
[1762756348498,0.25920952,3601.4,3601.3,3.39864326]
[1762756348696,0.25920952,3601.4,3601.3,4.35294326]
[1762756349226,0.002,3601.8,3601.7,1.259712]
[1762756349359,0.002,3601.8,3601.7,9.11484444]
[1762756349564,0.002,3601.8,3601.7,9.56107978]
[1762756349767,0.002,3601.8,3601.7,10.94370026]
[1762756350961,0.002,3601.8,3601.7,12.11507779]
[1762756353106,0.002,3601.9,3601.8,4.44160558]
[1762756353267,0.002,3601.9,3601.8,5.39590558]
[1762756353470,0.002,3601.9,3601.8,5.42366947]
[1762756353740,0.002,3602.2,3602.1,3.18166235]
[1762756354023,0.002,3602.4,3602.3,4.44122021]
[1762756354184,0.012,3603.9,3602.7,3.1812]
[1762756354527,0.012,3603.9,3602.7,4.921212]
[1762756354669,0.012,3603.9,3602.7,6.74873374]
[1762756354997,0.012,3603.9,3603.0,3.18096889]
[1762756355305,0.012,3603.9,3603.4,4.44037279]
[1762756355572,0.012,3603.9,3603.4,10.950399]
[1762756355703,0.012,3603.9,3603.4,12.75540645]
[1762756355910,0.012,3603.9,3603.4,13.09944921]
[1762756356288,0.012,3603.9,3603.4,12.75540645]
[1762756357716,0.012,3603.9,3603.4,13.09944921]
[1762756359198,0.012,3603.9,3603.4,13.2104698]
[1762756359428,0.01,3604.9,3604.8,3.179583]
[1762756359646,0.01,3604.9,3604.8,10.57402795]
[1762756359857,0.002,3605.1,3605.0,4.4391411]
[1762756360067,0.002,3605.1,3605.0,4.9194411]
[1762756360375,0.002,3605.1,3605.0,5.3934411]
[1762756362146,0.002,3605.1,3605.0,4.9194411]
[1762756362345,0.0821,3605.1,3605.0,4.0336371]
[1762756362551,0.002,3605.1,3605.0,4.0336371]
[1762756362728,0.002,3605.1,3605.0,1.665216]
[1762756362929,0.002,3605.1,3605.0,4.4391411]
[1762756363247,0.002,3605.1,3605.0,4.9194411]
[1762756363449,0.002,3605.1,3605.0,3.48030925]
[1762756363820,0.002,3605.1,3605.0,3.00000925]
[1762756364257,0.0821,3605.1,3605.0,1.665216]
[1762756365254,0.0821,3605.1,3605.0,1.259712]
[1762756367645,0.5473,3605.1,3605.0,1.259712]
[1762756367848,3.32114815,3605.1,3604.5,0.405504]
[1762756368049,3.32114815,3605.1,3604.4,1.499]
[1762756368050,0.1388,3604.5,3604.4,1.499]
[1762756370205,0.6007,3604.5,3603.6,3.8]
[1762756370349,0.0046,3604.3,3603.8,2.77479911]
[1762756370551,0.0046,3604.3,3603.4,0.1915]
[1762756370794,0.4691,3604.2,3603.4,2.77515679]
[1762756370948,0.4691,3604.2,3603.5,2.72840576]
[1762756371255,2.77464104,3604.1,3603.5,1.46869376]
[1762756371444,2.77464104,3604.1,3603.4,0.405504]
[1762756371650,2.77464104,3604.1,3603.4,3.18064487]
[1762756371845,0.4691,3604.2,3603.4,0.405504]
[1762756372046,0.4691,3604.2,3603.6,0.405504]
[1762756372247,0.25607263,3604.1,3603.6,0.405504]
[1762756372483,2.77466617,3604.1,3603.5,0.405504]
[1762756372786,2.77466617,3604.1,3603.5,0.86096766]
[1762756373274,0.25631469,3604.0,3603.5,3.63602268]
[1762756373450,3.24366456,3604.2,3603.5,3.63602268]
[1762756373648,3.24366456,3604.2,3603.5,0.86096766]
[1762756373649,3.03095251,3604.1,3603.5,0.86096766]
[1762756373843,3.03095251,3604.1,3603.5,3.63604499]
[1762756373844,0.25631468,3604.0,3603.5,3.63604499]
[1762756374072,3.24366989,3604.2,3603.5,3.63604499]
[1762756374291,0.25659283,3604.1,3603.6,0.63297769]
[1762756374515,0.25659283,3604.0,3603.7,1.259712]
[1762756374732,0.25659283,3603.9,3603.6,0.63297769]
[1762756374950,0.4652,3603.7,3603.6,0.63297769]
[1762756375080,0.4652,3603.7,3602.5,1.84204276]
[1762756375081,0.72179357,3603.7,3603.2,0.405504]
[1762756375397,0.25659357,3603.6,3603.4,1.259712]
[1762756375602,0.25659357,3603.5,3603.4,1.666216]
[1762756375804,0.25659357,3603.5,3603.4,1.260712]
[1762756375998,0.25659357,3603.5,3603.4,2.47634449]
[1762756376202,0.25659357,3603.5,3603.4,1.21663249]
[1762756377016,0.25659357,3603.5,3603.4,0.4688]
[1762756377220,0.25659357,3603.5,3603.4,0.001]
[1762756378419,0.34369357,3603.5,3603.4,0.001]
[1762756378880,0.80189357,3603.5,3603.4,0.001]
[1762756379292,3.57697335,3603.5,3603.4,0.001]
[1762756382534,0.72569357,3603.5,3603.4,0.001]
[1762756382833,3.58087335,3603.5,3603.4,0.001]
[1762756383001,0.72569357,3603.5,3603.4,0.001]
[1762756383512,3.58087335,3603.5,3603.4,0.001]
[1762756385738,2.77531083,3603.2,3603.1,0.01]
[1762756386038,3.1190044,3603.2,3603.1,0.01]
[1762756386241,3.5772044,3603.2,3603.1,0.01]
[1762756386818,3.5772044,3603.2,3603.0,0.001]
[1762756386819,2.77538786,3603.1,3603.0,0.001]
[1762756387018,3.49858143,3603.1,3603.0,0.001]
[1762756388725,3.03658143,3603.1,3603.0,0.001]
[1762756388903,3.49858143,3603.1,3603.0,0.001]
[1762756396571,2.775696,3602.7,3602.6,0.001]
[1762756396738,3.11488957,3602.7,3602.6,0.001]
[1762756396950,3.57688957,3602.7,3602.6,0.001]
[1762756399951,3.11488957,3602.7,3602.6,0.001]
[1762756400372,3.11488957,3602.7,3602.6,0.9264]
[1762756400373,0.25659357,3602.7,3602.6,0.9264]
[1762756400773,3.03228957,3602.7,3602.6,0.4688]
[1762756400942,0.25659357,3602.7,3602.6,0.4688]
[1762756401771,3.03228957,3602.7,3602.6,0.4688]
[1762756401970,0.25659357,3602.7,3602.6,0.4688]
[1762756402146,0.25659357,3602.7,3602.6,0.9264]
[1762756402468,0.25659357,3602.7,3602.6,1.60475483]
[1762756403476,0.25659357,3602.7,3602.6,0.95415773]
[1762756403680,0.25659357,3602.7,3602.6,0.9264]
[1762756405303,0.25659357,3602.7,3602.6,4.96188505]
[1762756406498,0.25659357,3602.7,3602.6,2.186112]
[1762756406904,0.25659357,3602.7,3602.6,4.96188505]
[1762756407269,0.25659357,3602.7,3602.6,5.73566573]
[1762756408367,0.25659357,3602.7,3602.6,6.14116973]
[1762756408574,0.25659357,3602.7,3602.6,6.51971249]
[1762756408786,0.25659357,3602.7,3602.6,6.14116973]
[1762756408981,0.25659357,3602.7,3602.6,3.36539668]
[1762756409190,0.25659357,3602.7,3602.6,2.186112]
[1762756409380,0.25659357,3602.7,3602.6,4.96188505]
[1762756409601,0.25659357,3602.7,3602.6,2.186112]
[1762756410008,0.25659357,3602.7,3602.6,4.96188505]
[1762756410503,0.25659357,3602.7,3602.6,2.186112]
[1762756411004,0.25659357,3602.7,3602.6,4.96188505]
[1762756411310,0.25659357,3602.7,3602.6,5.73567172]
[1762756413015,0.25659357,3602.7,3602.6,2.95989867]
[1762756413226,0.25659357,3602.7,3602.6,4.96188505]
[1762756413594,0.25659357,3602.7,3602.6,2.186112]
[1762756414218,0.25659357,3602.7,3602.6,4.96188505]
[1762756414422,0.25659357,3602.7,3602.6,2.186112]
[1762756414808,0.25659357,3602.7,3602.6,4.96188505]
[1762756416198,0.25659357,3602.7,3602.6,6.17960065]
[1762756417313,0.25659357,3602.7,3602.6,3.4038276]
[1762756417512,0.25659357,3602.7,3602.6,6.17960065]
[1762756417824,0.25659357,3602.7,3602.6,3.4038276]
[1762756418243,0.25659357,3602.7,3602.6,6.17960065]
[1762756419846,0.25659357,3602.7,3602.6,3.4038276]
[1762756420219,0.002,3603.0,3602.7,1.259712]
[1762756420421,0.2592793,3602.9,3602.7,4.50629586]
[1762756420628,0.2592793,3602.8,3602.7,4.50629586]
[1762756420945,0.2592793,3602.8,3602.7,1.730612]
[1762756421145,0.002,3603.0,3602.7,4.994608]
[1762756421347,0.25927251,3602.9,3602.7,4.994608]
[1762756421558,0.25927268,3602.8,3602.7,2.218912]
[1762756421738,0.002,3603.0,3602.7,1.730612]
[1762756421935,0.25927267,3602.9,3602.7,1.730612]
[1762756422153,0.002,3603.0,3602.9,3.26384192]
[1762756422326,0.35495316,3603.0,3602.8,0.40904276]
[1762756422525,0.26377227,3602.9,3602.7,1.259712]
[1762756422725,0.0045,3602.9,3602.7,1.259712]
[1762756422925,0.0045,3602.9,3602.7,4.03540349]
[1762756423226,0.002,3603.0,3602.7,4.03540349]
[1762756423432,0.25930017,3602.9,3602.7,4.03540349]
[1762756423619,0.002,3603.0,3602.7,4.03540349]
[1762756423815,0.25930016,3602.9,3602.7,4.03540349]
[1762756424015,0.002,3603.0,3602.7,4.03540349]
[1762756424216,0.25932776,3602.9,3602.8,2.77561896]
[1762756424416,0.002,3603.0,3602.7,1.259712]
[1762756424729,0.25932688,3602.9,3602.7,1.259712]
[1762756424929,0.002,3603.0,3602.7,1.259712]
[1762756425129,0.25932991,3602.9,3602.7,4.03540279]
[1762756425330,0.002,3603.0,3602.7,4.03540279]
[1762756425529,0.25935815,3602.9,3602.7,4.03540279]
[1762756425832,0.002,3603.0,3602.7,4.03540279]
[1762756426027,0.25935572,3602.9,3602.7,5.530612]
[1762756426344,0.002,3603.0,3602.7,8.30630576]
[1762756426546,0.25939304,3602.9,3602.7,8.30630576]
[1762756426745,0.002,3603.0,3602.7,8.30630576]
[1762756427041,0.25939398,3602.9,3602.7,8.30630576]
[1762756427246,0.002,3603.0,3602.7,8.30630576]
[1762756427448,0.25949595,3602.9,3602.8,0.4883]
[1762756428946,0.35319595,3602.9,3602.7,5.059712]
[1762756429149,2.775696,3602.7,3602.6,0.001]
[1762756429464,3.11079195,3602.7,3602.6,0.001]
[1762756429625,3.57989195,3602.7,3602.6,0.001]
[1762756430719,3.11079195,3602.7,3602.6,0.001]
[1762756431044,3.57989195,3602.7,3602.6,0.001]
[1762756431244,8.01924775,3602.7,3602.6,0.001]
[1762756434864,3.57989195,3602.7,3602.6,0.001]
[1762756435155,3.110684,3602.7,3602.6,0.001]
[1762756438836,0.259388,3602.7,3602.6,0.001]
[1762756439054,3.035084,3602.7,3602.6,0.001]
[1762756440276,3.035084,3602.7,3602.6,0.4995]
[1762756440577,0.259388,3602.7,3602.6,0.4995]
[1762756440935,3.035084,3602.7,3602.6,0.4995]
[1762756441246,3.035084,3602.7,3602.6,0.001]
[1762756441649,0.259388,3602.7,3602.6,0.001]
[1762756441874,0.259388,3602.7,3602.6,0.4995]
[1762756442084,0.259388,3602.7,3602.6,0.9586]
[1762756442939,0.259388,3602.7,3602.6,9.02931385]
[1762756443135,0.259388,3602.7,3602.6,0.4995]
[1762756443937,0.259388,3602.7,3602.6,0.9586]
[1762756445254,0.002,3603.0,3602.6,0.9586]
[1762756445466,0.25919713,3602.9,3602.6,0.9586]
[1762756445666,0.25919713,3602.8,3602.6,0.9586]
[1762756445869,0.25919713,3602.7,3602.6,0.9586]
[1762756446076,0.25919713,3602.7,3602.6,0.4601]
[1762756446276,0.25919713,3602.7,3602.6,0.9586]
[1762756447982,0.002,3603.0,3602.7,2.77567855]
[1762756448186,0.002,3603.0,3602.9,0.4985]
[1762756448474,0.26122765,3603.0,3602.9,0.4985]
[1762756448676,0.26122765,3603.0,3602.9,0.9576]
[1762756448877,0.26122765,3603.0,3602.6,0.40071682]
[1762756449089,0.25922765,3602.9,3602.6,0.001]
[1762756449270,2.775696,3602.7,3602.6,0.001]
[1762756449447,3.11502365,3602.7,3602.6,0.001]
[1762756449768,3.58022365,3602.7,3602.6,0.001]
[1762756453146,3.58022365,3602.7,3602.2,0.001]
[1762756453147,2.77600421,3602.3,3602.2,0.001]
[1762756453362,8.53737194,3602.3,3602.2,0.001]
[1762756453568,9.59956717,3602.3,3602.2,0.001]
[1762756455263,9.599163,3602.3,3602.2,0.001]
[1762756456194,9.00257194,3602.3,3602.2,0.001]
[1762756459899,9.65257194,3602.3,3602.2,0.001]
[1762756462496,9.00257194,3602.3,3602.2,0.001]
[1762756463201,4.37504386,3602.3,3602.2,0.001]
[1762756463402,4.84024386,3602.3,3602.2,0.001]
[1762756469040,4.83927367,3602.3,3602.2,0.001]
[1762756469538,3.03426167,3602.3,3602.2,0.9635]
[1762756470102,0.25825746,3602.3,3602.2,0.9635]
[1762756470303,3.03426167,3602.3,3602.2,0.9635]
[1762756471134,0.25825746,3602.3,3602.2,0.9635]
[1762756471439,3.03426167,3602.3,3602.2,0.9635]
[1762756472525,0.25825746,3602.3,3602.2,0.9635]
[1762756474840,0.25862363,3602.3,3602.2,0.9635]
[1762756475408,0.25862363,3602.3,3602.2,5.12582808]
[1762756475708,0.25862363,3602.3,3602.2,5.65819089]
[1762756476113,0.25862363,3602.3,3602.2,8.43427217]
[1762756476848,0.25862363,3602.3,3602.2,5.65819089]
[1762756477617,0.25862363,3602.3,3602.2,8.43427217]
[1762756477814,0.002,3602.6,3602.2,4.27194409]
[1762756478010,0.002,3602.6,3602.5,0.4668]
[1762756478215,0.26091766,3602.6,3602.5,0.4668]
[1762756478414,0.26091766,3602.6,3602.5,0.9625]
[1762756479465,0.002,3603.0,3602.9,2.77554192]
[1762756479755,0.002,3603.0,3602.9,9.21949982]
[1762756479909,0.002,3603.0,3602.9,10.50279658]
[1762756480349,0.002,3603.0,3602.9,10.12070382]
[1762756484034,0.002,3603.8,3603.5,2.77507978]
[1762756484366,0.002,3603.8,3603.5,9.78000525]
[1762756485773,0.002,3603.8,3603.5,7.00492547]
[1762756486155,0.002,3603.8,3603.5,9.78000525]
[1762756486534,0.002,3603.8,3603.5,7.00492547]
[1762756486739,0.002,3603.8,3603.5,9.78000525]
[1762756487272,0.002,3603.8,3603.5,10.18550925]
[1762756487571,0.002,3604.0,3603.9,4.43998777]
[1762756487742,0.012,3604.9,3604.8,4.16232808]
[1762756487950,0.012,3604.9,3604.8,7.43094787]
[1762756488254,0.012,3604.9,3604.8,5.12482808]
[1762756488775,0.012,3604.9,3604.8,7.89890708]
[1762756488978,0.012,3604.9,3604.8,6.20324284]
[1762756490170,0.012,3604.9,3604.8,5.12482808]
[1762756490378,0.012,3604.9,3604.8,7.89890708]
[1762756490573,0.012,3604.9,3604.8,5.12482808]
[1762756490777,0.012,3604.9,3604.8,4.62912808]
[1762756490977,0.207,3604.9,3604.4,1.259712]
[1762756491179,0.207,3604.9,3604.5,0.59120401]
[1762756491350,0.012,3604.9,3604.5,0.49]
[1762756491792,0.012,3604.9,3604.6,4.16232808]
[1762756492281,0.012,3604.9,3604.6,4.65232808]
[1762756493192,0.012,3604.9,3604.7,1.259712]
[1762756494710,0.012,3604.9,3604.8,0.4524]
[1762756494997,0.012,3604.9,3604.8,1.49904401]
[1762756495491,0.012,3604.9,3604.8,4.67862701]
[1762756495892,0.012,3604.9,3604.8,5.93833901]
[1762756496191,0.012,3604.9,3604.8,6.04935221]
[1762756496556,0.012,3604.9,3604.8,10.21168029]
[1762756497170,0.012,3604.9,3604.8,14.01168029]
[1762756501060,0.002,3605.3,3605.2,3.17927521]
[1762756501299,0.002,3605.3,3605.2,9.24331529]
[1762756501490,0.002,3605.3,3605.2,9.70251529]
[1762756501805,0.002,3605.7,3605.4,3.17912135]
[1762756502022,0.012,3605.9,3605.8,3.17881366]
[1762756502167,0.012,3605.9,3605.8,13.68797615]
[1762756502367,0.012,3605.9,3605.8,14.11944306]
[1762756505208,0.012,3605.9,3605.8,10.31944306]
[1762756506188,0.012,3605.9,3605.8,10.43042053]
[1762756507013,0.012,3605.9,3605.8,15.12604527]
[1762756507326,0.012,3605.9,3605.8,10.69706886]
[1762756511120,0.012,3605.9,3605.8,14.49706886]
[1762756511992,0.012,3605.9,3605.8,14.03786886]
[1762756512197,0.012,3605.9,3605.8,13.92689139]
[1762756512499,0.012,3605.9,3605.8,14.38609139]
[1762756517340,0.012,3605.9,3605.8,18.8150678]
[1762756517648,0.002,3606.3,3606.0,3.17865985]
[1762756517836,0.002,3606.3,3606.0,17.54872467]
[1762756518156,0.002,3606.3,3606.0,18.00792467]
[1762756519361,0.002,3606.3,3606.0,18.36502077]
[1762756520324,0.002,3606.7,3606.6,4.4379105]
[1762756520528,0.002,3606.7,3606.6,10.12178624]
[1762756520863,0.002,3606.7,3606.6,10.58628624]
[1762756521065,0.002,3606.7,3606.6,11.03898624]
[1762756521430,0.002,3606.7,3606.6,10.12178624]
[1762756522334,0.26040059,3606.7,3606.6,10.12178624]
[1762756523053,0.002,3606.7,3606.6,10.12178624]
[1762756523252,0.26046566,3606.7,3606.6,10.12178624]
[1762756524266,0.26046566,3606.7,3606.6,10.58628624]
[1762756524836,0.26046566,3606.7,3606.6,10.97638234]
[1762756525428,0.26046566,3606.7,3606.6,10.58628624]
[1762756526058,0.26046566,3606.7,3606.6,14.38628624]
[1762756526567,0.01,3608.9,3607.8,3.17727627]
[1762756526766,0.4698,3608.2,3607.8,6.09419241]
[1762756526969,0.0894,3607.9,3607.8,6.09419241]
[1762756527270,0.0894,3607.9,3607.8,9.33576468]
[1762756527858,0.0894,3607.9,3607.8,8.86596468]
[1762756528030,0.0894,3607.9,3607.8,10.47239083]
[1762756528231,0.0894,3607.9,3607.8,10.86164935]
[1762756528569,0.0894,3607.9,3607.8,9.69786644]
[1762756528770,0.0894,3607.9,3607.8,6.92609417]
[1762756528971,0.7465,3607.9,3607.8,5.68868841]
[1762756530152,0.7465,3607.9,3607.4,4.42897641]
[1762756530368,0.0067,3607.5,3607.4,4.42897641]
[1762756530565,0.0067,3607.5,3607.2,4.42897641]
[1762756530566,0.4765,3607.5,3607.2,4.42897641]
[1762756530766,3.24382898,3607.5,3607.0,4.42897641]
[1762756530975,0.0794,3607.1,3606.8,4.42897641]
[1762756531294,2.77224129,3607.2,3606.7,1.259712]
[1762756531450,2.77224129,3607.2,3606.5,2.77370159]
[1762756531451,2.77224129,3607.2,3606.8,4.42897641]
[1762756531657,0.0906,3607.1,3606.8,4.42897641]
[1762756531979,0.646,3606.9,3606.8,4.42897641]
[1762756532368,0.7402,3606.9,3606.8,4.42897641]
[1762756533785,0.7402,3606.9,3606.6,4.42897641]
[1762756533965,0.4698,3606.8,3606.7,1.259712]
[1762756534362,0.5492,3606.8,3606.7,1.259712]
[1762756535088,0.0794,3606.8,3606.7,4.03232962]
[1762756535294,0.002,3607.5,3606.7,4.03232962]
[1762756535295,0.4659,3607.3,3606.7,4.03232962]
[1762756535590,0.1912,3607.1,3606.8,4.42897641]
[1762756535953,0.1912,3607.1,3606.8,7.20151716]
[1762756535954,0.0833,3606.9,3606.8,7.20151716]
[1762756536150,0.1912,3607.4,3607.1,2.77228637]
[1762756536355,0.1912,3607.4,3607.2,4.42897641]
[1762756536803,0.087,3607.3,3607.2,4.42897641]
[1762756537190,0.5453,3607.3,3607.2,4.42897641]
[1762756537389,0.087,3607.3,3607.2,4.42897641]
[1762756538989,0.002,3607.5,3607.2,4.42897641]
[1762756538990,0.002,3607.5,3607.4,2.77207961]
[1762756539159,0.002,3607.5,3607.4,7.66305602]
[1762756539890,0.4605,3607.5,3607.4,4.42897641]
[1762756540088,0.5511,3607.5,3607.4,4.42897641]
[1762756540507,2.77230704,3607.2,3606.3,4.42897641]
[1762756540664,2.77215646,3607.3,3606.4,5.68868841]
[1762756540863,0.0794,3606.6,3606.4,5.68868841]
[1762756541385,0.0794,3606.6,3606.2,4.42897641]
[1762756541588,0.002,3607.5,3606.5,4.89197641]
[1762756541806,2.77222399,3607.3,3607.0,4.42897641]
[1762756542109,0.25902437,3607.2,3607.0,4.42897641]
[1762756542310,0.0794,3607.1,3607.0,4.42897641]
[1762756542475,0.0794,3607.1,3606.8,4.42897641]
[1762756542681,0.0794,3607.1,3607.0,4.42897641]
[1762756543095,0.0794,3607.1,3607.0,5.68868841]
[1762756544392,0.0794,3607.1,3607.0,1.259712]
[1762756544393,0.5453,3607.1,3607.0,1.259712]
[1762756546596,0.0794,3607.1,3607.0,5.68868841]
[1762756546819,0.4679,3607.5,3607.1,1.259712]
[1762756546979,0.4679,3607.5,3606.9,1.259712]
[1762756546980,0.0833,3607.1,3606.9,1.259712]
[1762756547444,0.0833,3607.1,3606.9,4.03216845]
[1762756548229,0.0008,3607.0,3606.8,1.260712]
[1762756548528,0.0008,3607.0,3606.8,2.77350756]
[1762756548839,0.7393,3606.9,3606.8,0.001]
[1762756549550,3.51176388,3606.9,3606.8,0.001]
[1762756550040,3.77099625,3606.9,3606.8,0.001]
[1762756556032,5.03070825,3606.9,3606.8,0.001]
[1762756558817,5.62688873,3606.9,3606.8,0.001]
[1762756559203,5.62688873,3606.9,3606.5,0.001]
[1762756559204,2.7726945,3606.6,3606.5,0.001]
[1762756559404,2.77277138,3606.5,3606.4,0.001]
[1762756559712,3.58150375,3606.5,3606.4,0.001]
[1762756559932,10.45385185,3606.5,3606.4,0.001]
[1762756560235,11.05013405,3606.5,3606.4,0.001]
[1762756560436,5.43749795,3606.5,3606.4,0.001]
[1762756561439,5.43749795,3606.5,3606.1,0.001]
[1762756561440,2.77300205,3606.2,3606.1,0.001]
[1762756561660,3.03703442,3606.2,3606.1,0.001]
[1762756561823,3.03703442,3606.2,3606.0,0.001]
[1762756561824,2.77307894,3606.1,3606.0,0.001]
[1762756562152,2.77330966,3605.8,3605.1,0.01]
[1762756562319,3.21384203,3605.8,3605.1,0.01]
[1762756562568,3.69264203,3605.8,3605.1,0.01]
[1762756563366,0.1813,3605.8,3605.1,2.9668393]
[1762756563693,2.95460966,3605.8,3605.1,3.4587393]
[1762756563860,0.0054,3605.8,3605.1,0.6849]
[1762756564061,0.6547,3606.5,3605.7,0.9887]
[1762756564264,2.77329102,3605.9,3605.7,0.001]
[1762756564457,0.2453,3605.8,3605.7,0.001]
[1762756564683,3.01860966,3605.8,3605.7,0.001]
[1762756564858,3.49430966,3605.8,3605.7,0.001]
[1762756565058,3.75264437,3605.8,3605.7,0.001]
[1762756567164,5.01235637,3605.8,3605.7,0.001]
[1762756570018,4.53665637,3605.8,3605.7,0.001]
[1762756570390,5.01235637,3605.8,3605.7,0.001]
[1762756572195,3.27694437,3605.8,3605.7,0.001]
[1762756572596,2.77330966,3605.8,3605.7,0.4968]
[1762756573829,0.1759,3606.5,3605.7,0.9887]
[1762756574011,2.77315585,3606.0,3605.9,0.4958]
[1762756574724,0.1759,3606.5,3605.9,0.4958]
[1762756575025,2.77301219,3606.2,3605.9,0.9877]
[1762756575325,2.77309256,3606.1,3605.9,0.9877]
[1762756575496,2.7730297,3606.2,3605.9,0.4919]
[1762756575698,2.7730297,3606.2,3606.0,0.4958]
[1762756575998,2.7730297,3606.2,3606.1,0.4958]
[1762756577235,3.03149706,3606.2,3606.1,0.4958]
[1762756577927,2.7730297,3606.2,3606.1,0.4958]
[1762756578226,3.03165226,3606.2,3606.1,0.4958]
[1762756579000,2.7732706,3605.9,3605.7,0.4929]
[1762756579530,2.7732706,3605.9,3605.8,0.4958]
[1762756580111,2.77307894,3606.1,3605.8,0.4958]
[1762756580312,2.77307894,3606.1,3606.0,0.4958]
[1762756580511,3.03191157,3606.1,3606.0,0.4958]
[1762756583124,3.03391157,3606.1,3606.0,0.4958]
[1762756584550,2.77322161,3606.0,3605.7,0.001]
[1762756584742,2.77322161,3606.0,3605.7,0.4802]
[1762756584921,2.77322161,3606.0,3605.9,0.4646]
[1762756585254,3.03226179,3606.0,3605.9,0.4646]
[1762756585550,2.77330966,3605.8,3605.7,0.001]
[1762756585717,3.03704984,3605.8,3605.7,0.001]
[1762756586954,0.26374018,3605.8,3605.7,0.001]
[1762756587153,3.03704984,3605.8,3605.7,0.001]
[1762756588829,3.03716964,3605.8,3605.7,0.001]
[1762756589350,3.52556964,3605.8,3605.7,0.001]
[1762756590056,0.25915998,3605.8,3605.7,0.4656]
[1762756590354,0.25915998,3605.8,3605.7,0.9448]
[1762756590524,2.77508018,3606.1,3605.7,0.9448]
[1762756590719,2.77508018,3606.1,3606.0,0.4646]
[1762756590918,3.03424556,3606.1,3606.0,0.4646]
[1762756591253,3.03424432,3606.1,3606.0,0.9438]
[1762756591558,0.26116538,3606.1,3606.0,0.9438]
[1762756593367,0.002,3606.1,3606.0,4.09153993]
[1762756597321,0.002,3606.1,3606.0,1.31838408]
[1762756597521,0.002,3606.1,3606.0,0.9438]
[1762756599738,0.002,3606.1,3606.0,0.9448]
[1762756601950,0.002,3606.1,3606.0,3.71795585]
[1762756603171,0.002,3606.1,3606.0,0.9448]
[1762756604888,0.002,3606.1,3606.0,4.7448]
[1762756605587,0.002,3606.1,3606.0,8.6731653]
[1762756605791,0.002,3606.1,3606.0,15.6697293]
[1762756606084,0.002,3606.1,3606.0,16.11290732]
[1762756607687,0.002,3606.1,3606.0,16.22387525]
[1762756609598,0.002,3606.1,3606.0,15.78069723]
[1762756610600,0.002,3606.1,3606.0,15.28069723]
[1762756610905,0.002,3606.1,3606.0,15.76749723]
[1762756612962,0.002,3606.1,3606.0,14.58792458]
[1762756615194,0.002,3606.1,3606.0,15.0311026]
[1762756620942,0.002,3606.1,3606.0,16.51333943]
[1762756621824,0.002,3606.1,3606.0,14.58792458]
[1762756622807,0.002,3606.5,3606.0,16.51333943]
[1762756623127,0.002,3606.5,3606.4,9.23333961]
[1762756623441,0.002,3606.5,3606.4,9.67651763]
[1762756623643,0.002,3606.5,3606.4,10.14071763]
[1762756626891,0.002,3606.9,3606.7,4.43783362]
[1762756627237,0.002,3606.9,3606.8,23.27276074]
[1762756627437,0.002,3606.9,3606.8,23.73696074]
[1762756627641,0.002,3606.9,3606.8,23.84788712]
[1762756628221,0.002,3606.9,3606.8,17.49091869]
[1762756628741,0.002,3606.9,3606.8,14.38471869]
[1762756629125,0.002,3606.9,3606.8,10.07028831]
[1762756629639,0.002,3606.9,3606.8,10.47579231]
[1762756630134,0.6403,3606.9,3606.8,1.665216]
[1762756630303,1.0498,3606.9,3606.5,4.4262344]
[1762756630502,0.6542,3606.8,3606.5,4.4262344]
[1762756630694,0.3937,3606.6,3606.5,7.19900578]
[1762756630895,0.3937,3606.6,3606.5,8.86422178]
[1762756631727,0.3937,3606.6,3606.5,6.0914504]
[1762756631914,0.8594,3606.6,3606.5,6.0914504]
[1762756632296,0.8594,3606.6,3606.5,8.86422178]
[1762756633335,0.8594,3606.6,3606.5,6.0914504]
[1762756634014,0.3937,3606.6,3606.5,8.86422178]
[1762756634348,0.1906,3606.6,3606.5,8.86418874]
[1762756635661,0.654,3606.9,3606.8,3.17804475]
[1762756635662,0.002,3606.9,3606.8,3.17804475]
[1762756635965,0.002,3606.9,3606.8,9.31569115]
[1762756637450,0.002,3606.9,3606.8,8.86399115]
[1762756637916,0.002,3606.9,3606.8,9.31569115]
[1762756638118,0.002,3606.9,3606.8,10.55427921]
[1762756638450,0.002,3606.9,3606.8,14.98051361]
[1762756638656,0.002,3606.9,3606.8,10.99745723]
[1762756639022,0.002,3606.9,3606.8,11.46165723]
[1762756639224,0.002,3606.9,3606.8,12.94921324]
[1762756639422,0.002,3606.9,3606.8,17.48638694]
[1762756640252,0.002,3606.9,3606.8,15.99883093]
[1762756640816,0.002,3606.9,3606.8,11.57259653]